bitfinex/quotes_ETHUSD_20241101
["timestamp","ask_amount","ask_price","bid_price","bid_amount"]
[1730445009538,4.00948,2494.1,2493.7,0.7578]
[1730445009685,4.690286,2494.4,2493.1,1.59125555]
[1730445009891,3.0,2493.9,2493.1,0.7579]
[1730445010112,4.01068,2493.4,2493.1,0.7579]
[1730445010334,8.02141,2493.4,2492.9,0.7579]
[1730445010483,4.01068,2493.4,2492.9,0.7579]
[1730445010898,4.77555,2493.5,2492.9,4.76918]
[1730445011419,4.77555,2493.5,2492.9,0.7579]
[1730445011648,4.77555,2493.5,2492.9,4.76928]
[1730445011941,4.01077,2493.3,2492.9,0.7579]
[1730445012121,4.01091,2493.2,2492.9,0.7579]
[1730445012436,4.01133,2493.0,2492.7,0.7801]
[1730445012638,4.01155,2492.8,2492.7,0.005]
[1730445014849,4.84145,2492.8,2492.7,0.005]
[1730445016303,7.84145,2492.8,2492.7,0.005]
[1730445016607,9.027734,2492.8,2492.7,0.005]
[1730445017110,5.197834,2492.8,2492.7,0.005]
[1730445017944,4.01139,2492.9,2492.7,0.005]
[1730445018412,4.01155,2492.8,2492.7,0.005]
[1730445019455,7.01155,2492.8,2492.7,0.005]
[1730445019621,4.81399,2492.4,2492.3,0.1219505]
[1730445019836,5.696593,2492.4,2492.3,0.1219505]
[1730445020434,7.81512,2491.7,2491.6,0.2988748]
[1730445020620,4.81512,2491.7,2491.6,0.2988748]
[1730445020821,4.01332,2491.7,2491.6,0.2988748]
[1730445021515,8.50119613,2491.7,2491.6,0.2988748]
[1730445021741,4.896149,2491.7,2491.6,0.2988748]
[1730445022054,4.01332,2491.7,2491.6,0.2988748]
[1730445022351,4.014,2491.3,2490.8,0.7538]
[1730445022876,4.01414,2491.2,2490.8,0.7538]
[1730445023013,4.01416,2491.2,2490.8,0.7538]
[1730445023420,8.02808,2491.3,2490.8,0.7538]
[1730445023758,4.014,2491.3,2490.8,1.2723773]
[1730445023925,8.02812,2491.3,2490.8,1.2723773]
[1730445024262,4.0139,2491.4,2490.8,1.2723773]
[1730445024413,4.01399,2491.3,2490.8,1.2723773]
[1730445024812,4.0134,2491.7,2491.0,4.01432]
[1730445025043,4.0134,2491.7,2491.2,0.7819]
[1730445025554,4.01361,2491.6,2491.2,0.7819]
[1730445025862,4.01394,2491.4,2490.9,0.7691]
[1730445026015,4.01394,2491.4,2490.9,4.78368]
[1730445026358,4.01394,2491.4,2490.9,0.7691]
[1730445027433,4.01394,2491.4,2490.9,4.78371]
[1730445027635,4.01394,2491.4,2490.9,0.7691]
[1730445027934,4.01368,2491.5,2491.0,4.01443]
[1730445028775,4.0138,2491.4,2490.9,4.78364]
[1730445029135,4.01357,2491.6,2491.0,4.01429]
[1730445029331,4.01382,2491.4,2490.9,0.7691]
[1730445029987,4.01382,2491.4,2490.6,1.18289298]
[1730445029988,8.02909,2491.0,2490.6,1.18289298]
[1730445030138,4.01464,2490.9,2490.6,0.7659]
[1730445030331,4.01486,2490.8,2490.6,0.7659]
[1730445030532,4.01464,2490.9,2490.6,0.7659]
[1730445030836,4.01405,2491.3,2490.6,0.7659]
[1730445031094,4.84367,2490.0,2489.7,1.25112766]
[1730445031364,4.84367,2490.0,2488.8,4.19e-06]
[1730445031365,4.57783,2488.9,2488.8,4.19e-06]
[1730445031536,4.09812938,2488.9,2488.8,4.19e-06]
[1730445031829,11.86312938,2488.9,2488.8,4.19e-06]
[1730445032034,14.80493891,2488.9,2488.8,4.19e-06]
[1730445032284,13.21467809,2488.9,2488.8,4.19e-06]
[1730445032437,17.87141652,2488.9,2488.8,4.19e-06]
[1730445032639,13.66641652,2488.9,2488.8,4.19e-06]
[1730445032931,13.01496843,2488.9,2488.8,4.19e-06]
[1730445033137,0.01,2488.6,2487.3,4.1422605]
[1730445033373,0.08029938,2488.6,2487.6,0.01]
[1730445033579,0.08029938,2488.6,2487.5,0.7524]
[1730445033580,0.08029938,2488.9,2488.5,4.01848]
[1730445033762,0.08029938,2488.9,2488.3,4.01865]
[1730445033763,0.08029938,2489.2,2488.7,4.01803]
[1730445033946,0.08029938,2489.4,2488.9,4.01783]
[1730445034157,0.08029938,2489.4,2489.0,0.07517101]
[1730445034374,4.09707938,2489.6,2489.0,0.48447111]
[1730445034571,0.08029938,2489.6,2489.0,4.50208111]
[1730445034778,0.08029938,2489.6,2489.1,4.01747]
[1730445034960,0.08029938,2489.6,2489.1,0.07516154]
[1730445036040,0.08029938,2489.6,2488.9,4.01771]
[1730445036256,0.08029938,2489.6,2489.2,0.07515207]
[1730445036454,4.01752,2489.1,2488.6,0.7524]
[1730445036658,4.01787,2488.9,2488.2,0.7806]
[1730445036856,4.01816,2488.7,2487.8,0.7806]
[1730445037056,0.08029938,2488.6,2487.8,0.7806]
[1730445037258,4.01779,2489.0,2488.2,4.01886]
[1730445037463,0.08029938,2488.9,2488.0,4.01918]
[1730445037689,0.08029938,2488.9,2488.3,4.01874]
[1730445037925,0.08029938,2488.9,2488.2,4.0188]
[1730445038088,4.09813938,2488.9,2488.1,0.402918]
[1730445038291,4.018,2488.8,2488.0,4.01927]
[1730445038587,0.08029938,2488.7,2488.1,4.01911]
[1730445038791,0.08029938,2488.7,2488.2,4.0189]
[1730445039086,0.08029938,2488.8,2488.2,4.01886]
[1730445039865,0.08029938,2488.8,2487.8,4.80009]
[1730445040078,4.01833,2488.6,2487.8,4.80009]
[1730445040286,4.09879938,2488.5,2487.8,4.80009]
[1730445040701,0.08029938,2488.5,2487.9,4.01943]
[1730445041193,0.08029938,2488.5,2487.8,4.80009]
[1730445041353,0.08029938,2488.6,2488.1,4.01911]
[1730445041710,0.7864,2488.5,2487.4,0.7961]
[1730445041890,4.0193,2488.0,2487.4,4.8163]
[1730445042088,0.08029938,2487.9,2487.4,0.7961]
[1730445042257,4.01961,2487.8,2487.4,0.7961]
[1730445042574,0.08029938,2487.7,2487.4,0.7961]
[1730445042772,4.09897938,2488.4,2487.7,4.01963]
[1730445043089,0.08029938,2488.4,2487.8,4.01951]
[1730445043276,4.09897938,2488.4,2487.8,4.01951]
[1730445044168,4.09897938,2488.4,2487.4,0.7961]
[1730445044169,0.08029938,2488.4,2487.4,0.7961]
[1730445044488,0.8109,2488.4,2487.6,4.0199]
[1730445044698,4.09909938,2488.3,2487.4,0.7961]
[1730445044852,4.09909938,2488.3,2487.7,0.07804316]
[1730445045055,4.09909938,2488.3,2487.6,4.01983]
[1730445045248,4.09909938,2488.3,2487.8,0.07803368]
[1730445045249,4.01913,2488.1,2487.8,0.07803368]
[1730445045580,4.01913,2488.1,2487.3,0.1219505]
[1730445045581,0.7637,2487.7,2487.3,0.1219505]
[1730445045750,4.02026,2487.4,2487.3,0.1219505]
[1730445046061,0.08029938,2487.4,2487.3,0.1219505]
[1730445046924,0.08029938,2487.6,2487.3,0.1219505]
[1730445047329,4.01977,2487.7,2487.3,0.1219505]
[1730445047628,0.08029938,2487.6,2487.3,0.1219505]
[1730445047829,0.08029938,2487.6,2487.3,4.1423605]
[1730445048050,4.0201,2487.5,2487.4,0.07393728]
[1730445048263,0.08029938,2487.8,2487.4,0.07393728]
[1730445048477,0.08029938,2487.8,2487.3,0.1219505]
[1730445048757,0.08029938,2487.8,2487.5,0.768]
[1730445048958,0.08029938,2488.0,2487.5,4.78808]
[1730445049168,0.08029938,2488.0,2487.6,0.07391832]
[1730445049351,4.79038,2488.4,2487.6,4.09375832]
[1730445049352,4.09911938,2488.3,2487.6,4.09375832]
[1730445049664,0.08029938,2488.3,2487.6,0.07391832]
[1730445049824,0.08029938,2488.3,2487.8,4.01951]
[1730445050024,0.08029938,2488.3,2487.8,4.83084283]
[1730445050260,0.08029938,2488.4,2487.9,0.07388988]
[1730445050469,0.08029938,2488.4,2488.0,4.01928]
[1730445050769,0.08029938,2488.4,2488.0,0.0738804]
[1730445050928,0.08029938,2488.6,2487.8,4.83084283]
[1730445051122,4.01858,2488.5,2487.9,4.01939]
[1730445051360,0.08029938,2488.4,2487.9,4.09327988]
[1730445051559,0.08029938,2488.4,2487.9,0.07388988]
[1730445051770,4.09894938,2488.4,2487.9,0.07388988]
[1730445052167,4.0188,2488.3,2487.9,0.07388988]
[1730445052371,0.08029938,2488.2,2487.6,4.01984]
[1730445052542,0.08029938,2488.2,2487.7,4.01972]
[1730445052743,0.08029938,2488.2,2487.7,0.07390884]
[1730445052937,4.09935938,2488.2,2487.7,0.07390884]
[1730445053140,0.08029938,2488.2,2487.7,4.09356884]
[1730445053341,0.08029938,2488.4,2488.0,4.01928]
[1730445053540,4.01857,2488.5,2487.8,4.01949]
[1730445053741,0.08029938,2488.4,2487.9,4.01944]
[1730445054161,0.08029938,2488.4,2488.0,0.07395551]
[1730445054486,4.09909938,2488.4,2487.8,4.01949]
[1730445054662,4.09909938,2488.4,2488.1,0.07394603]
[1730445054839,4.09909938,2488.4,2487.8,4.01949]
[1730445055176,0.08029938,2488.4,2487.9,4.01943]
[1730445055377,0.08029938,2488.4,2488.1,0.8251]
[1730445055537,4.01823,2488.7,2488.1,0.8251]
[1730445055538,0.08029938,2488.6,2488.1,0.8251]
[1730445055734,4.01857,2488.5,2488.2,0.07393656]
[1730445055974,0.08029938,2488.4,2488.2,0.07393656]
[1730445056189,0.08029938,2488.6,2488.2,0.07393656]
[1730445056340,0.08029938,2488.6,2488.1,0.8251]
[1730445056341,4.09862938,2488.6,2488.1,0.8251]
[1730445056681,4.09862938,2488.6,2488.2,0.07393656]
[1730445056862,0.08029938,2488.6,2488.2,0.07393656]
[1730445057172,4.09862938,2488.6,2488.2,0.07393656]
[1730445057373,0.08029938,2488.6,2488.2,0.07393656]
[1730445057874,0.08029938,2488.6,2488.2,4.94379105]
[1730445058079,0.08029938,2488.8,2488.2,4.94379105]
[1730445058238,0.08029938,2488.8,2488.4,4.01863]
[1730445058437,0.08029938,2488.8,2488.4,8.03718]
[1730445058640,0.08029938,2488.8,2488.5,4.09222002]
[1730445058984,4.09810938,2489.0,2488.5,0.07374002]
[1730445059150,0.08029938,2489.0,2488.5,4.09222002]
[1730445059486,0.08029938,2489.0,2488.6,4.78297]
[1730445059684,0.08029938,2489.2,2488.6,4.85685055]
[1730445059890,0.08029938,2489.2,2488.7,4.01814]
[1730445060182,0.08029938,2489.2,2488.7,4.09175021]
[1730445060355,0.08029938,2489.4,2488.7,4.09175021]
[1730445060540,0.08029938,2489.4,2488.7,4.09167021]
[1730445060740,4.01723,2489.3,2488.7,8.10972021]
[1730445060966,0.08029938,2489.2,2488.7,4.09166021]
[1730445061138,0.08029938,2489.2,2488.8,4.01795]
[1730445061337,0.08029938,2489.2,2488.7,8.10972021]
[1730445061542,0.08029938,2489.2,2488.9,0.07359127]
[1730445061785,3.0,2489.7,2488.9,0.07359127]
[1730445061786,0.08029938,2489.4,2488.9,4.82878213]
[1730445061987,0.08029938,2489.6,2489.0,0.0735818]
[1730445062191,4.01751,2489.1,2489.0,0.0735818]
[1730445062480,4.01703,2489.4,2488.1,0.01]
[1730445062481,4.01794,2488.9,2488.3,0.7864]
[1730445062640,0.08029938,2488.8,2488.3,4.80519]
[1730445062844,4.01728,2489.3,2488.7,4.01815]
[1730445063175,4.09774938,2489.2,2488.5,4.01839]
[1730445063381,4.09774938,2489.2,2488.8,0.07343271]
[1730445063580,4.09774938,2489.2,2488.5,8.03677]
[1730445063779,4.09746938,2489.4,2488.9,0.07342324]
[1730445063953,4.01767,2489.1,2488.5,4.01839]
[1730445064315,0.08029938,2489.4,2488.0,4.82718]
[1730445064316,4.01822,2488.7,2488.0,4.82718]
[1730445064613,4.01822,2488.7,2488.0,0.8079]
[1730445064614,8.03713,2488.5,2488.0,0.8079]
[1730445064910,0.08029938,2488.4,2488.0,4.82713]
[1730445065213,4.01889,2488.3,2488.0,0.8079]
[1730445065398,4.81617,2488.9,2488.0,0.8079]
[1730445065716,4.01817,2488.7,2488.2,4.01886]
[1730445065897,0.08029938,2488.6,2488.2,4.01886]
[1730445066094,0.08029938,2488.6,2487.4,4.84082]
[1730445066095,4.01934,2488.0,2487.4,4.84082]
[1730445066297,4.01934,2488.0,2487.4,5.58511947]
[1730445066298,0.08029938,2487.9,2487.4,5.58511947]
[1730445066503,0.08029938,2487.9,2487.5,4.01995]
[1730445066698,4.01915,2488.1,2487.5,4.01995]
[1730445066699,0.08029938,2488.0,2487.5,4.01995]
[1730445066899,4.09959938,2488.0,2487.4,5.58505947]
[1730445067077,4.09959938,2488.0,2487.4,9.60520947]
[1730445067274,4.01963,2487.8,2487.4,0.8206]
[1730445067474,7.81456,2487.4,2487.3,0.1219505]
[1730445068112,12.08301916,2487.4,2487.3,5e-07]
[1730445068410,7.81456,2487.4,2487.3,5e-07]
[1730445069390,4.81456,2487.4,2487.3,5e-07]
[1730445069697,4.10055938,2487.4,2487.3,0.06961942]
[1730445070014,4.10055938,2487.4,2487.3,5e-07]
[1730445070536,7.10055938,2487.4,2487.3,5e-07]
[1730445070715,8.45789635,2487.4,2487.3,5e-07]
[1730445070880,5.36759697,2487.4,2487.3,5e-07]
[1730445071075,4.91615938,2487.4,2487.3,5e-07]
[1730445071471,7.91615938,2487.4,2487.3,5e-07]
[1730445071792,7.83586,2487.4,2487.3,5e-07]
[1730445072685,4.83586,2487.4,2487.3,5e-07]
[1730445072927,0.08029938,2487.4,2487.3,5e-07]
[1730445073287,0.08029938,2487.4,2487.3,4.09008597]
[1730445073491,4.09960938,2488.0,2487.4,4.02014]
[1730445073839,0.08029938,2488.0,2487.5,0.06951403]
[1730445074438,4.09961938,2488.0,2487.5,0.06951403]
[1730445075191,0.08029938,2488.0,2487.5,4.91564118]
[1730445075589,0.8156,2488.5,2487.8,4.81391]
[1730445075698,0.08029938,2488.4,2487.8,5.63996715]
[1730445075900,0.08029938,2488.4,2487.9,0.89538292]
[1730445076100,0.08029938,2488.4,2488.0,0.82605715]
[1730445076420,0.08029938,2488.4,2488.1,0.82605715]
[1730445076621,0.08029938,2488.6,2488.2,0.82605715]
[1730445077141,0.08029938,2488.6,2488.3,0.06916262]
[1730445077601,0.08029938,2488.6,2488.2,0.82605715]
[1730445077795,0.08029938,2488.6,2488.3,4.08785905]
[1730445077993,0.08029938,2488.8,2488.4,0.806]
[1730445078436,0.08029938,2488.8,2488.5,0.06914009]
[1730445078605,4.01769,2489.0,2488.5,0.06914009]
[1730445078606,0.08029938,2488.9,2488.5,0.06914009]
[1730445078995,0.08029938,2488.9,2488.5,4.08757009]
[1730445079196,0.86969938,2489.6,2488.5,0.77609522]
[1730445079436,0.08029938,2489.6,2489.0,0.806]
[1730445079843,4.01643,2489.8,2489.0,0.806]
[1730445079844,0.08029938,2489.9,2489.3,4.01717]
[1730445079996,0.08029938,2489.8,2489.3,4.01717]
[1730445080197,0.08029938,2489.8,2489.1,4.99252884]
[1730445080198,0.08029938,2489.8,2489.2,4.01732]
[1730445080435,0.08029938,2489.9,2489.3,4.08584232]
[1730445080603,0.08029938,2489.9,2489.4,4.01698]
[1730445080813,0.08029938,2489.9,2489.5,4.01685]
[1730445080998,0.08029938,2490.0,2489.7,4.01641]
[1730445081208,0.08029938,2490.3,2489.8,4.01633]
[1730445081429,0.08029938,2490.3,2489.9,4.0162]
[1730445081606,0.08029938,2490.3,2489.8,4.08477479]
[1730445081809,4.09555938,2490.5,2489.9,0.06843533]
[1730445082025,4.01482,2490.8,2489.9,0.14875163]
[1730445082208,0.08029938,2490.7,2490.2,4.01568]
[1730445082702,0.08029938,2490.7,2490.3,0.06839748]
[1730445082903,0.08029938,2490.7,2490.2,4.01568]
[1730445083122,0.08029938,2490.7,2490.4,0.06804146]
[1730445083327,0.46291197,2490.7,2489.8,0.82605715]
[1730445083528,4.01568,2490.3,2489.7,0.89673494]
[1730445083855,4.01568,2490.3,2489.7,0.06023494]
[1730445083856,4.01597,2490.1,2489.7,0.06023494]
[1730445084073,0.763,2490.2,2488.9,0.82605715]
[1730445084074,3.68357222,2490.0,2488.9,0.82605715]
[1730445084273,4.01719,2489.4,2488.8,0.8265]
[1730445084569,0.08029938,2489.3,2488.8,0.8265]
[1730445084722,4.01751,2489.2,2488.8,0.8265]
[1730445084931,0.08029938,2489.3,2488.8,0.8265]
[1730445085441,4.01708,2489.4,2488.8,0.8265]
[1730445085442,4.01708,2489.4,2488.8,4.84439]
[1730445085639,4.01708,2489.4,2488.8,0.8265]
[1730445085824,0.08029938,2489.3,2488.8,0.8265]
[1730445086367,0.7761,2489.6,2488.3,4.85478715]
[1730445086368,4.0177,2489.0,2488.4,0.7996]
[1730445086885,4.01678,2489.6,2488.9,4.77181]
[1730445087040,0.08029938,2489.5,2489.0,4.09794367]
[1730445087237,0.08029938,2489.5,2489.0,4.0176]
[1730445087667,4.01678,2489.6,2489.0,4.09794206]
[1730445087970,4.01608,2490.0,2489.3,4.01709]
[1730445088191,4.09657938,2489.9,2489.3,4.01709]
[1730445089533,0.8175,2490.5,2489.0,1.65647521]
[1730445089534,0.8428,2491.6,2490.4,0.01]
[1730445089738,4.01455,2491.0,2490.4,4.01538]
[1730445089938,4.01455,2491.0,2490.5,0.06049666]
[1730445090183,4.01433,2491.1,2490.5,0.14079484]
[1730445090334,4.66372741,2491.6,2490.5,0.14079484]
[1730445090335,4.01455,2491.0,2490.5,0.14079484]
[1730445090675,4.01455,2491.0,2490.5,0.06049666]
[1730445091174,8.02778,2491.4,2490.6,4.01507]
[1730445091473,4.66372741,2491.6,2490.6,4.01507]
[1730445091474,4.01408,2491.3,2490.6,4.07539337]
[1730445091673,4.01408,2491.3,2490.8,0.8141]
[1730445091848,4.01372,2491.5,2490.9,0.0802872]
[1730445092051,4.01338,2491.7,2491.1,4.01426]
[1730445092275,4.01338,2491.7,2490.8,0.8141]
[1730445092276,4.01305,2491.9,2491.0,4.01432]
[1730445092480,4.01305,2491.9,2491.1,0.01]
[1730445092786,4.01305,2491.9,2491.3,4.7977]
[1730445092936,4.01276,2492.1,2491.4,4.0138]
[1730445093142,4.01276,2492.1,2491.5,4.01358]
[1730445093487,4.01244,2492.3,2491.7,4.01321]
[1730445093488,4.01242,2492.3,2491.7,4.01321]
[1730445093778,4.01231,2492.4,2491.8,4.01313]
[1730445093984,4.01231,2492.4,2491.8,4.07089978]
[1730445094137,4.01103228,2492.5,2491.9,4.8771018]
[1730445094343,4.01103228,2492.5,2491.9,0.84166033]
[1730445094545,4.01246,2492.3,2491.9,0.84166033]
[1730445094748,4.01284,2492.0,2491.9,0.05776033]
[1730445094944,4.01284,2492.0,2491.1,0.7513]
[1730445094945,4.01364,2491.6,2491.1,0.7513]
[1730445095388,4.01361,2491.6,2491.1,0.7513]
[1730445095882,4.01323,2491.8,2491.1,0.7513]
[1730445096086,4.01323,2491.8,2491.2,4.09436985]
[1730445096257,4.01351,2491.6,2491.1,0.7513]
[1730445097291,4.01232,2492.4,2491.7,4.01318]
[1730445097491,4.01219,2492.5,2491.8,0.7771]
[1730445097647,4.01235,2492.3,2491.8,0.7771]
[1730445097968,4.01219,2492.5,2491.8,4.79012]
[1730445098176,4.01219,2492.5,2491.9,4.01296]
[1730445098350,4.01179,2492.7,2492.0,4.01273]
[1730445098682,4.01179,2492.7,2492.0,0.08024615]
[1730445098882,4.01189,2492.6,2492.0,4.09298615]
[1730445099070,4.01179,2492.7,2492.1,4.01267]
[1730445099270,4.01179,2492.7,2492.2,0.08024198]
[1730445099473,4.01205,2492.5,2491.9,4.01289]
[1730445099660,4.01179,2492.7,2492.1,4.01266]
[1730445099857,7.01162,2492.8,2492.1,4.02266]
[1730445100055,3.0,2492.8,2492.2,4.01241]
[1730445100260,7.01166,2492.8,2492.3,0.7698]
[1730445100482,3.0,2492.8,2492.3,0.7698]
[1730445100859,4.01147,2492.9,2492.3,0.7698]
[1730445100860,4.01147,2492.9,2492.4,0.08023284]
[1730445101186,4.01147,2492.9,2492.3,0.7798]
[1730445101504,4.01165,2492.8,2492.3,0.7698]
[1730445101654,4.01113,2493.1,2492.3,0.7698]
[1730445101868,4.01125,2493.0,2492.3,0.7698]
[1730445102066,4.01113,2493.1,2492.3,4.78201]
[1730445102407,4.01113,2493.1,2492.5,4.01201]
[1730445103305,8.02232,2493.1,2492.5,4.01201]
[1730445103667,8.0223,2493.1,2492.5,4.01201]
[1730445103866,4.01113,2493.1,2492.4,0.01]
[1730445104062,4.01158,2492.8,2492.3,1.249001]
[1730445104308,4.0115,2492.9,2492.3,1.249001]
[1730445104470,8.02301,2492.9,2492.3,1.249001]
[1730445104671,4.01159,2492.8,2492.3,1.249001]
[1730445104872,4.01175,2492.7,2492.3,0.7698]
[1730445105807,4.01219,2492.4,2492.3,0.7698]
[1730445105967,4.0125,2492.3,2491.8,0.7683]
[1730445106470,4.01219,2492.4,2491.8,0.7683]
[1730445106662,4.01219,2492.4,2491.8,0.84854349]
[1730445107467,4.01195,2492.6,2491.8,0.84854349]
[1730445107887,4.01223,2492.4,2491.8,0.7683]
[1730445108088,4.01223,2492.4,2491.9,0.05444306]
[1730445108427,8.02453,2492.4,2491.9,0.08024352]
[1730445108573,4.01223,2492.4,2491.8,0.7683]
[1730445108771,4.01236,2492.3,2492.0,0.05443362]
[1730445109100,4.01223,2492.4,2492.1,0.05442417]
[1730445109404,4.01223,2492.4,2491.8,4.78146]
[1730445109610,4.01223,2492.4,2492.2,0.05441472]
[1730445109810,4.01239,2492.3,2491.9,0.880468]
[1730445109978,4.01223,2492.4,2491.9,0.880468]
[1730445110179,4.01237,2492.3,2491.9,0.880468]
[1730445110637,4.01223,2492.4,2491.9,0.880468]
[1730445110980,4.01223,2492.4,2492.0,0.08024354]
[1730445111182,4.01223,2492.4,2491.9,0.880468]
[1730445112400,4.01223,2492.4,2492.0,0.08024355]
[1730445113388,4.01223,2492.4,2491.9,0.880468]
[1730445113634,3.0,2493.0,2491.8,0.7683]
[1730445113782,4.01262,2492.2,2491.8,0.7683]
[1730445114610,4.01228,2492.4,2491.9,0.08024985]
[1730445114822,4.01189,2492.6,2491.9,0.09024985]
[1730445115119,4.0114,2492.9,2492.0,0.82183362]
[1730445115412,8.02227,2493.1,2492.3,0.7674]
[1730445115619,4.0114,2492.9,2492.3,0.7674]
[1730445115790,4.0114,2492.9,2492.4,0.05469737]
[1730445115998,4.0114,2492.9,2492.3,0.7674]
[1730445116387,4.0114,2492.9,2492.4,0.05457675]
[1730445116723,4.0114,2492.9,2492.4,4.01218]
[1730445116921,8.02228,2493.1,2492.5,0.5325253]
[1730445117219,4.01142,2492.9,2492.5,0.5325253]
[1730445119087,4.01118,2493.1,2492.5,0.5325253]
[1730445119286,4.01149,2492.9,2492.5,0.5325253]
[1730445122128,4.01081,2493.3,2492.7,0.7988]
[1730445122328,4.01014,2493.7,2493.0,4.01109]
[1730445122530,4.01014,2493.7,2493.1,4.09126427]
[1730445122729,4.01014,2493.7,2493.2,4.01089]
[1730445123079,4.80438,2493.9,2493.4,4.01057]
[1730445123080,4.00988,2493.9,2493.4,4.01057]
[1730445123562,4.00988,2493.9,2493.5,0.05076285]
[1730445123767,4.00971,2494.0,2493.5,0.05076285]
[1730445123928,0.8095,2494.5,2493.5,0.05076285]
[1730445123929,8.01875,2494.2,2493.6,4.01023]
[1730445124130,4.00906,2494.4,2493.6,4.06092341]
[1730445124377,4.00916,2494.3,2493.7,0.8214]
[1730445124580,4.00906,2494.4,2493.7,4.88186844]
[1730445124783,4.00906,2494.4,2493.7,0.87182844]
[1730445124989,8.01814,2494.4,2493.8,4.00994]
[1730445125190,4.00932,2494.2,2493.8,0.05027727]
[1730445125373,4.00906,2494.4,2493.8,0.05027727]
[1730445125543,4.00906,2494.4,2493.9,4.00977]
[1730445125889,4.00876,2494.6,2494.0,4.84078]
[1730445126092,4.00876,2494.6,2494.0,5.33088478]
[1730445126291,4.13033,2494.8,2494.0,5.33088478]
[1730445126292,4.13033,2494.8,2494.2,4.00917]
[1730445126587,4.13033,2494.8,2494.4,4.00894]
[1730445126588,0.12195,2494.8,2494.4,4.00894]
[1730445126757,0.12195,2494.8,2494.3,0.88083874]
[1730445126967,4.13039,2494.8,2494.5,0.04951988]
[1730445127301,4.13039,2494.8,2494.3,4.84043]
[1730445127460,0.12195,2494.8,2494.6,0.04951045]
[1730445127797,0.12195,2494.8,2494.4,4.00895]
[1730445128003,0.12195,2494.8,2494.3,1.716259]
[1730445128004,4.1303,2494.8,2494.7,0.04950103]
[1730445128295,0.12195,2494.8,2494.7,0.04950103]
[1730445128502,0.12195,2494.8,2494.3,0.8313]
[1730445128658,0.12195,2494.8,2494.7,0.04950103]
[1730445128860,0.12195,2494.8,2494.6,4.00851]
[1730445129161,0.12195,2494.8,2494.7,4.87309103]
[1730445129483,0.12195,2494.8,2494.7,0.86460103]
[1730445130462,0.12195,2494.8,2494.7,4.87309103]
[1730445130978,0.12195,2494.8,2494.7,0.94475739]
[1730445131308,4.00758,2495.3,2494.7,0.86460103]
[1730445131459,4.00758,2495.3,2494.7,4.87300103]
[1730445131654,4.00731,2495.5,2494.8,0.4883001]
[1730445131867,4.00731,2495.5,2494.9,4.05761217]
[1730445132271,8.01402,2495.7,2495.0,4.0880562]
[1730445132560,4.00698,2495.7,2495.1,0.04946332]
[1730445132753,8.014,2495.7,2495.1,0.04946332]
[1730445132955,0.8306,2495.9,2495.1,0.45519765]
[1730445132956,4.00706,2495.6,2495.1,0.45519765]
[1730445133224,4.00689,2495.7,2495.1,0.04946332]
[1730445133410,4.00769,2495.2,2495.1,0.04946332]
[1730445133565,4.00769,2495.2,2494.7,0.8151]
[1730445133761,4.00769,2495.2,2495.1,0.04946332]
[1730445133956,4.0079,2495.1,2494.7,0.8151]
[1730445134259,4.00754,2495.3,2494.7,1.297489]
[1730445134260,4.00753,2495.3,2494.7,1.297489]
[1730445134455,3.36258845,2495.2,2494.8,0.04794344]
[1730445134709,4.81247,2494.9,2494.8,0.04794344]
[1730445134859,4.00915,2494.3,2494.1,0.8227]
[1730445135062,4.00915,2494.3,2494.2,0.04539146]
[1730445135063,8.01839,2494.3,2494.2,0.04539146]
[1730445135595,4.00915,2494.3,2493.8,0.8227]
[1730445135908,3.8043,2494.9,2493.8,0.8227]
[1730445135909,4.00868,2494.6,2494.0,4.00948]
[1730445136197,4.00838,2494.8,2494.2,4.00926]
[1730445136358,4.00838,2494.8,2494.1,0.400948]
[1730445136359,8.01657,2494.9,2494.4,0.8155]
[1730445136559,4.00825,2494.9,2494.4,0.8155]
[1730445136794,4.0085,2494.7,2494.5,0.04560036]
[1730445137566,4.00951,2494.1,2493.8,0.82605715]
[1730445137897,4.00962,2494.0,2493.8,0.28814812]
[1730445138100,4.00962,2494.0,2493.9,0.04412374]
[1730445138463,4.00951,2494.1,2493.9,0.04412374]
[1730445138707,4.0092,2494.3,2493.7,0.8155]
[1730445139063,8.01847,2494.3,2493.7,0.8155]
[1730445139258,4.0092,2494.3,2493.8,0.92775704]
[1730445139508,4.0092,2494.3,2493.8,1.0079447]
[1730445139723,4.00947,2494.1,2493.8,0.92775704]
[1730445140025,4.00947,2494.1,2493.8,0.04416504]
[1730445140026,4.00978,2493.9,2493.8,0.04416504]
[1730445140387,4.00997,2493.8,2493.4,0.8008]
[1730445140711,4.00978,2493.9,2493.4,0.8008]
[1730445141025,4.00881,2494.5,2493.5,0.04431377]
[1730445141233,0.8263,2494.6,2493.5,0.04431377]
[1730445141234,4.00989,2493.9,2493.5,0.04431377]
[1730445142106,4.00952,2494.1,2493.5,0.04431377]
[1730445142311,4.00952,2494.1,2493.6,0.08019762]
[1730445142496,4.00952,2494.1,2493.6,0.04430433]
[1730445142698,8.01847,2494.3,2493.6,4.94101476]
[1730445142900,4.00923,2494.3,2493.7,0.08018989]
[1730445143199,4.00955,2494.1,2493.8,0.04432088]
[1730445143388,4.00955,2494.1,2493.6,4.89671043]
[1730445143589,4.00955,2494.1,2493.9,0.04431145]
[1730445143822,4.00931,2494.2,2493.9,0.04431145]
[1730445144007,4.00931,2494.2,2493.7,0.0801899]
[1730445144212,4.00884,2494.5,2494.0,0.84380202]
[1730445144386,4.00884,2494.5,2494.0,0.7995]
[1730445144591,4.00884,2494.5,2494.1,0.04429258]
[1730445144807,4.00902,2494.4,2494.1,0.04429258]
[1730445145224,4.00899,2494.4,2494.1,0.04429258]
[1730445145431,4.0093,2494.2,2494.1,0.04429258]
[1730445145803,4.0093,2494.2,2493.6,4.81365]
[1730445145804,4.00931,2494.2,2493.6,4.81365]
[1730445146002,8.01842,2494.3,2494.1,0.04463955]
[1730445146204,4.00915,2494.3,2493.7,0.481365]
[1730445146517,4.00969,2494.0,2493.7,0.481365]
[1730445146715,4.00969,2494.0,2493.8,0.04466785]
[1730445146901,4.00969,2494.0,2493.6,0.8035]